Cogmind - Beta 17 @@@ ROGUE MODE // 2026.08.16 @ 05:56:07 Player: 4R-ZE3 Result: Destroyed by JA-VRM(R) with Subdweller Beam Cannon Performance ------------- Evolutions (0) 0 Regions Visited (2) 400 Robots Destroyed (25) 125 Value Destroyed (760) 760 Prototype IDs (14) 280 Alien Tech Used (0) 0 Bonus (0) 0 TOTAL SCORE: 1565 Bonus ------- None Cogmind --------- Core Integrity 0/250 Matter 290/300 Energy 250/250 System Corruption 0% Temperature Cool (9) Movement Treading (160) Location -10/Subcaves Parts ------- > --- POWER (1) -------- Ion Engine > --- PROPULSION (2) --- Improved Treads Spiked Treads > --- UTILITY (2) ------ Large Storage Unit Makeshift Light Armor Plating > --- WEAPON (2) ------- Subdweller Laser Flail > --- INVENTORY (15) --- Ion Engine Improved Treads Improved Treads Improved Heat Sink Huge Storage Unit Tower Shield Particle Gun Powered Cannon Heavy Assault Rifle Heavy Assault Rifle Subdweller Machine Gun Battle Cannon Grenade Launcher Peak State ------------ > --- POWER ------------ Ion Engine > --- PROPULSION ------- Improved Treads Improved Treads > --- UTILITY ---------- Large Storage Unit Makeshift Light Armor Plating > --- WEAPON ----------- Subdweller Laser Subdweller Machine Gun > --- INVENTORY -------- Ion Engine Light Treads Light Treads Improved Treads Huge Storage Unit Tower Shield Particle Gun Powered Cannon Heavy Assault Rifle Heavy Assault Rifle Battle Cannon Grenade Launcher Flail [Rating: 19] Favorites ----------- Power Ion Engine Engine Ion Engine Propulsion Improved Treads Treads Improved Treads Utility Large Storage Unit Device Improved Heat Sink Storage Large Storage Unit Protection Makeshift Light Armor Plating Weapon Heavy Assault Rifle Energy Gun Subdweller Laser Ballistic Gun Heavy Assault Rifle Launcher Grenade Launcher Impact Weapon Flail Build | -11 -10 -10 ------- Run | Yrd Mat Sub Slots Evolved . | . . . Power . | . . . Propulsion . | . . . Utility . | . . . Weapon . | . . . Parts Attached 23 | 7 10 6 Power 3 | 1 1 1 Engine 3 | 1 1 1 Core . | . . . Reactor . | . . . Propulsion 6 | 2 2 2 Treads 6 | 2 2 2 Leg . | . . . Wheel . | . . . Hover . | . . . Flight . | . . . Utility 4 | 1 2 1 Device 1 | . 1 . Storage 2 | 1 1 . Processor . | . . . Hackware . | . . . Protection 1 | . . 1 Artifact . | . . . Weapon 10 | 3 5 2 Energy Gun 3 | 1 1 1 Energy Cannon . | . . . Ballistic Gun 5 | 2 2 1 Ballistic Cannon . | . . . Launcher 1 | . 1 . Special Weapon . | . . . Impact Weapon 1 | . 1 . Slashing Weapon . | . . . Piercing Weapon . | . . . Special Melee Weapon . | . . . Unidentified Prototypes . | . . . Parts Lost 2 | . 2 . Power 1 | . 1 . Propulsion . | . . . Utility . | . . . Weapon 1 | . 1 . Highest Loss Streak 1 | . 1 . To Critical Strikes . | . . . Average Backups 12 | 1 11 13 Power 1 | . 1 1 Propulsion 2 | . 1 3 Utility 1 | . . 1 Weapon 7 | . 7 7 Tool/Special . | . . . Unused Backups 12 | . 2 10 Power 1 | . . 1 Propulsion 1 | . . 1 Utility 2 | . . 2 Weapon 8 | . 2 6 Tool/Special . | . . . Average Slot Usage (%) 97 | . 93 100 Engine 13 | . 13 14 Treads 27 | . 27 28 Device 10 | . 9 11 Storage 14 | . 14 14 Protection 1 | . . 2 Energy Gun 10 | . 8 11 Ballistic Gun 16 | . 17 14 Peak Build Rating 19 | 6 15 19 Average Rating 13 | 4 10 16 On Entrance 7 | . 6 15 Avg Prop Armor Cover (%) . | . . . Naked Turns . | . . . Heaviest Build 37 | 14 34 37 Greatest Support 46 | 40 46 46 Greatest Overweight (x) 1 | 1 1 . Average Overweight (x) . | . . . Largest Inventory Capacity 15 | 8 15 15 Average Capacity 14 | 6 14 15 Most Carried 15 | 2 15 15 Average Carried 12 | . 11 14 Final Capacity 15 | 8 15 15 Final Carried 15 | 2 14 15 Class Distribution -------------------- 86% | Mutant 13% | Scavenger-Mutant Dominant Class ---------------- Mutant | -10/Materials Mutant | -10/Subcaves Resources | -11 -10 -10 ----------- Run | Yrd Mat Sub Matter Collected 858 | 259 252 347 Remotely . | . . . Salvage Created 887 | . 689 198 Parts 58 | . 44 14 Haulers Intercepted 1 | . 1 . Recyclers Shooed . | . . . Parts Field Recycled . | . . . Retrieved Matter . | . . . Parts Self-Destructed 11 | . . 11 Prevented . | . . . Parts Restored . | . . . Kills | -11 -10 -10 ------- Run | Yrd Mat Sub Combat Hostiles Destroyed 23 | . 17 6 Guns 18 | . 14 4 AOE 5 | . 3 2 Classes Destroyed 5 | . 4 1 Hauler 1 | . 1 . Watcher 1 | . 1 . Swarmer 4 | . 3 1 Grunt 14 | . 14 . Subdweller 5 | . . 5 Best Kill Streak 4 | . 4 3 Combat Bots Only 4 | . 4 3 Max Kills in Single Turn 3 | . 3 1 Gunslinging . | . . . Exploded 3 | . 3 1 Melee . | . . . Uniques/NPCs Destroyed . | . . . Combat | -11 -10 -10 -------- Run | Yrd Mat Sub Hostile Shots Fired 106 | . 66 40 Missed 37 | . 23 14 Hits 69 | . 43 26 Projectile 69 | . 43 26 Damage Taken 1102 | . 531 571 Core 268 | . 68 200 Absorbed by Shields . | . . . Core Remaining (%) 100 | 100 . . Volleys Fired 92 | . 63 29 Largest 2 | . 2 2 Hottest 85 | . 85 83 Shots Fired 169 | . 119 50 Gun 165 | . 118 47 Cannon . | . . . Launcher 4 | . 1 3 Special . | . . . Kinetic 107 | . 75 32 Thermal 58 | . 43 15 Explosive 4 | . 1 3 Electromagnetic . | . . . Robot Hit Streak 16 | . 16 16 Robot Miss Streak 2 | . 2 2 Penetration Max . | . . . Secondary Targets . | . . . Shots Hit Robots 120 | . 82 38 Core Hits 49 | . 37 12 Critical Kills . | . . . Critical Parts Destroyed 1 | . . 1 Critical Strikes 2 | . 1 1 Burn 1 | . 1 . Smash 1 | . . 1 Melee Attacks 12 | . 2 10 Impact 12 | . 2 10 Slashing . | . . . Piercing . | . . . Sneak Attacks . | . . . Combat Hostiles . | . . . Follow-up Attacks . | . . . Damage Inflicted 2138 | . 1239 899 Guns 1691 | . 1110 581 Cannons . | . . . Explosions 369 | . 129 240 Melee 78 | . . 78 Ramming . | . . . Kinetic 1036 | . 698 338 Thermal 655 | . 412 243 Explosive 369 | . 129 240 Electromagnetic . | . . . Impact 78 | . . 78 Slashing . | . . . Piercing . | . . . Highest Corruption . | . . . Average Corruption . | . . . Corruption Purged . | . . . Corruption Blocked . | . . . Overload Shots . | . . . Overflow Damage 38 | . . 38 Projectiles . | . . . Explosions . | . . . Melee 38 | . . 38 Knockbacks . | . . . Impact . | . . . Kinetic . | . . . Secondary . | . . . Self-Inflicted Damage 37 | . 37 . Shots 1 | . 1 . Rammed . | . . . Targets Rammed . | . . . Kicked . | . . . Crushed . | . . . Highest Temperature 105 | . 105 . Average Temperature 44 | . 44 . Received Heat Transfer 426 | . 261 165 Siege Activations . | . . . Martial Activations . | . . . Shielding Activations . | . . . Robots Disrupted . | . . . Combat Hostiles . | . . . Robots Corrupted . | . . . Combat Hostiles . | . . . Parts Fried . | . . . Impact Corruptions 1 | . . 1 Robots Melted . | . . . Combat Hostiles . | . . . Parts Melted 4 | . 3 1 Heat Transferred 1521 | . 1221 300 Parts Sabotaged . | . . . Parts Stolen . | . . . Parts Stripped . | . . . Power Chain Reactions . | . . . Alert | -11 -10 -10 ------- Run | Yrd Mat Sub Maximum Alert Level . | . . . Low Security (%) 100 | 100 100 . Level 1 . | . . . Level 2 . | . . . Level 3 . | . . . Level 4 . | . . . Level 5 . | . . . High Security . | . . . Max Security . | . . . Peak Influence 191 | . 191 . Initial . | . . . Average 91 | . 96 . Influence Increases 648 | . 568 80 Destroy 0b10 Robot/C 360 | . 340 20 Destroy 0b10 Robot/NC 10 | . 10 . Destroy Leader 94 | . 94 . Successful Hack 35 | . 35 . Select Force Hacks 60 | . 60 . Destroy Structure 14 | . 14 . Lose Combat Pursuer 75 | . 15 60 Influence Decreases 648 | . 413 235 Entered New Map 75 | . . 75 Time Decay 553 | . 393 160 Lost Part 20 | . 20 . Squads Dispatched 6 | . 6 . Investigation 4 | . 4 . Extermination . | . . . Reinforcement 2 | . 2 . Assault . | . . . Garrison . | . . . Intercept . | . . . Searches Triggered . | . . . Construction Impeded . | . . . Haulers Reinforced . | . . . Active Scanning Responses . | . . . Cargo Convoy Interrupts . | . . . Stealth | -11 -10 -10 --------- Run | Yrd Mat Sub Distress Signals 1 | . 1 . Communications Jammed . | . . . Distress Signals . | . . . Times Spotted 38 | . 27 11 Peak Tracking Total 7 | . 4 7 Tactical Retreats 3 | . 1 2 Traps | -11 -10 -10 ------- Run | Yrd Mat Sub Traps Triggered 4 | . 4 . Indirectly . | . . . Trap Hack Attempts . | . . . Triggered . | . . . Disarmed . | . . . Reprogrammed . | . . . Reused . | . . . Traps Extracted . | . . . Installed . | . . . Triggered . | . . . Machines | -11 -10 -10 ---------- Run | Yrd Mat Sub Machines Disabled 1 | . . 1 Max in Single Turn 1 | . . 1 Machines Repaired . | . . . Machines Dismantled . | . . . Machines Sabotaged . | . . . Overloaded Fab Kills . | . . . Hacking | -11 -10 -10 --------- Run | Yrd Mat Sub Machines Accessed 10 | . 8 2 Terminals 6 | . 6 . Fabricators . | . . . Repair Stations . | . . . Recycling Units 2 | . 2 . Scanalyzers . | . . . Garrison Access . | . . . Total Hacks 23 | . 18 5 Successful 11 | . 6 5 Failed 12 | . 12 . Catastrophic 2 | . 2 . Database Lockouts . | . . . Manual 17 | . 17 . Terminals 15 | . 15 . Fabricators . | . . . Repair Stations . | . . . Recycling Units 3 | . 3 . Scanalyzers . | . . . Garrison Access . | . . . Terminal Hacks 7 | . 2 5 Record 4 | . . 4 Robot Analysis 1 | . 1 . Investigation Status 1 | . 1 . Proto ID Catalog 1 | . . 1 Fabricator Hacks . | . . . Repair Station Hacks . | . . . Recycling Unit Hacks . | . . . Scanalyzer . | . . . Garrison Access Hacks . | . . . Unauthorized Hacks 4 | . 4 . Terminals 2 | . 2 . Botnet 2 | . 2 . Fabricators . | . . . Repair Stations . | . . . Recycling Units 2 | . 2 . Tunnel 2 | . 2 . Scanalyzers . | . . . Garrison Access . | . . . Data Cores Recovered . | . . . Used . | . . . Hacking Detections 6 | . 6 . Full Trace Events . | . . . Feedback Events . | . . . Feedback Blocked . | . . . Robot Schematics Acquired . | . . . Robots Built . | . . . Authchips . | . . . Time . | . . . Total Robot Build Rating . | . . . Part Schematics Acquired . | . . . Parts Built . | . . . Authchips . | . . . Time . | . . . Total Part Build Rating . | . . . Part Studies Acquired . | . . . Parts Repaired . | . . . Time . | . . . Parts Recycled . | . . . Recycled Matter . | . . . Retrieved Matter . | . . . Retrieved Components . | . . . Parts Scanalyzed . | . . . Part Schematics Acquired . | . . . Parts Damaged . | . . . Bothacking | -11 -10 -10 ------------ Run | Yrd Mat Sub Used RIF Installer . | . . . Robots Hacked . | . . . Non-combat . | . . . Combat . | . . . Robot Hacks Applied . | . . . Relay Couplers Released . | . . . Fabnet Peak Effective % . | . . . Robots Rewired . | . . . Allies Hacked . | . . . Hacks Repelled . | . . . Allies | -11 -10 -10 -------- Run | Yrd Mat Sub Total Allies . | . . . Largest Group . | . . . Highest-Rated Group . | . . . Highest-Rated Ally . | . . . Total Orders . | . . . Ally Attacks . | . . . Total Damage . | . . . Kills . | . . . Allies Corrupted . | . . . Allies Melted . | . . . Intel | -11 -10 -10 ------- Run | Yrd Mat Sub Active Infowar (turns) . | . . . Robot Analysis Total 1 | . 1 . Derelict Logs Recovered 2 | . . 2 Drone Launches . | . . . Drone Recoveries . | . . . Exploration | -11 -10 -10 ------------- Run | Yrd Mat Sub Turns Passed 2711 | 67 1121 1523 Spaces Moved 1391 | 37 514 840 Core 4 | 4 . . Treads 1387 | 33 514 840 Legs . | . . . Wheels . | . . . Hover . | . . . Flight . | . . . Fastest Speed 50 | 50 160 160 Average Speed 159 | 150 160 160 Slowest Speed 240 | 160 240 160 Overloaded Moves . | . . . Propulsion Burnouts . | . . . Robots Hopped . | . . . Potential Cave-ins . | . . . Cave-ins Triggered . | . . . Exploration Rate (%) 49 | 3 91 54 Regions Visited 2 Branch Regions 1 Pre-discovered Areas 4 | . 2 2 Known Exits Taken . | . . . Unknown Exits Taken 2 | 1 1 . Scrap Searched 6 | . . 6 Spaces Dug 2 | . 1 1 Terrain Destroyed 19 | . 10 9 Melee 2 | . 1 1 Projectile . | . . . AOE 17 | . 9 8 Terrain Rammed . | . . . Walls Destroyed . | . . . Machines Disabled . | . . . Actions | -11 -10 -10 --------- Run | Yrd Mat Sub Total 1688 | 45 687 956 Wait 122 | . 75 47 Move 1389 | 36 513 840 Hop . | . . . Pick Up 25 | 2 16 7 Fast Attach 13 | 6 5 2 Attach 3 | . 3 . Detach . | . . . Swap 16 | 1 6 9 Drop 16 | . 4 12 Fire 92 | . 63 29 Melee 12 | . 2 10 Ram . | . . . Kick . | . . . Crush . | . . . Escape Stasis . | . . . Rewire . | . . . Trap . | . . . Miscellaneous . | . . . Route ------- -11/Scrapyard -10/Materials (discovered 5 exits: [*Mat x2] / [*Min x2] / *Sub) -10/Subcaves History --------- Turn | Location | Event 5 | -11/Scrapyard | Discovered new exit (range 16) 68 | -11/Scrapyard | Entered Materials 314 | -10/Materials | Build established: Mutant 347 | -10/Materials | Discovered new exit (range 16) 449 | -10/Materials | Discovered new exit (range 14) 592 | -10/Materials | Discovered new exit (range 9) 927 | -10/Materials | Discovered new exit (range 12) 1182 | -10/Materials | Discovered new exit (range 5) 1189 | -10/Materials | Entered Subcaves 1190 | -10/Subcaves | Approached by a straggling Scientist 1192 | -10/Subcaves | Ambushed by Subdwellers from Twisted Machinery 1388 | -10/Subcaves | A Subdweller sparked back to life 1388 | -10/Subcaves | A Subdweller sparked back to life 1388 | -10/Subcaves | A Subdweller sparked back to life 1402 | -10/Subcaves | Core integrity fell below 50% 1418 | -10/Subcaves | Found Prototype Energy Cannon 1922 | -10/Subcaves | A swath of the cavern ceiling suddenly collapsed 2117 | -10/Subcaves | Core integrity fell below 20% 2292 | -10/Subcaves | Visited 4L-MR0's lab 2301 | -10/Subcaves | Learned location of Zion (-7) 2304 | -10/Subcaves | Identified Powered Cannon 2312 | -10/Subcaves | Found Tower Shield 2397 | -10/Subcaves | Visited Clippyterm 2402 | -10/Subcaves | Learned Research machine intel 2420 | -10/Subcaves | Build established: Scavenger-Mutant 2435 | -10/Subcaves | Shifting Twisted Machinery released Battle Cannon 2480 | -10/Subcaves | Shifting Twisted Machinery released Mak. Light Armor Plating 2705 | -10/Subcaves | Disturbed a concealed Subdweller 2712 | -10/Subcaves | Destroyed by JA-VRM(R) with Subdweller Beam Cannon Last Messages --------------- 02688_ Found Sub. Monowheel. 02688_ Found 65 Matter. 02689_ Acquired 42 matter. 02690_ Searching scrap... 02690_ Found Mak. Power Source. 02690_ Found Spk. Treads. 02690_ Found 68 Matter. 02691_ Searching scrap... 02691_ Found Mak. Light Armor Plating. 02691_ Found 59 Matter. 02698_ Searching scrap... 02698_ Found Sub. Optics. 02698_ Found 58 Matter. 02702_ Dropped Lgt. Treads. 02705_ JA-VRM(R) angrily emerges from the Twisted Machinery. 02705_ JA-VRM(R) suffers critical hit (Smash). 02705_ Destroyed Sub. Optics. 02705_ JA-VRM(R) system corrupted by crushing effect. Map ----- +----------------------------------------------------+ | ######??## ## # #####?????????????????????????? | | #### # ###?####??????????????????? | | #?# ### ##??????????###????? | | #?# ## ## #?????????## #????? | | #### #### ## #?????????# ##???? | | ### # # #?## ### ##????????# ####? | | ### #?# # ##?#####?# #? | | ## ##?## ### ### #? | | # ##??# ## ## #? | | ##### ###???# # # ## #? | | ### ##???# #?????######### ### #? | | ####?####????###?????????????## ##?## ##? | | ??????????????????????????????# #?###" ##?? | | ??????????????????????????????## ####""" #??? | | ???????????????????????????????## ""#?#"""" ##??? | | ???????????????????????????????##[""###"""" ##???? | | ??????????????????????????????## " ##" " =##????? | | ??????????????????????????????# """" " " ###?????? | | ??????????????????????????????# """""" ####????? | | ??????????????????????????????# " "" #????? | | ??????????????????????????????# #????? | | ????????????????????############ #????? | | ????????????????????# ### ###????? | | ????????????????????# ##### # # ##??????? | | ????????????????????# ##<<%## # ##???????? | | ????????????????????# #<]@<<# ## # ##????????? | | ????????????????????# ##<%R<# # # ##????????? | | ????????????????????# ##*<## # # ##???????? | | ????????????????????## #%## ## ## # #???????? | | ??????????????????# # %!= ### #???????? | | ???????????????????# [ #?## #???????? | | ???????????????????# # # ##?# #???????? | | ???????????????????# #### #?# #???????? | | ???????????????????## ##??# #### ##??????? | | ????????????????????## #?### # # #??????? | | ????????????????????# ## ##?????? | | ????????????????????## #?????? | | ?????????????????????## ## ### ##????? | | ??????????????????????###?###?## ##???? | | ??????????????????????????##### #???? | | ?????????????????????????## #???? | | ????????????????????????## ## #???? | | ????????????????????????# ### #???? | | ????????????????????????# ## ##???? | | ????????????????????????## ## #????? | | ?????????????????????????### #### #????? | | ????????????????????????#### ##?## ##????? | | ????????????????????????# #?## #?????? | | ????????????????????????## ### ##?????? | | ?????????????????????????### #??????? | +----------------------------------------------------+ Best States ------------- Heat Dissipation 39 Energy Generation 10 Energy Capacity 250 Matter Stores 300 Matter Capacity 300 Sight Range 16 Terrain Scan Density 10 Armor Coverage 100 Evasion (%) 40 Recoil Reduction 2 Item Schematics ----------------- None Robot Schematics ------------------ None Fabricated ------------ Nothing Repaired ---------- Nothing Studied --------- None Alien Tech Used ----------------- None Achievements -------------- None Challenges ------------ None Game ------ Seed DroneDispersalLink Manual? 0 Play Time 00:14:55 Cumulative 253.5 hours Start 2026.08.16 @ 05:41:45 End 2026.08.16 @ 05:56:07 Sessions 1 Manual Loads 0 Difficulty Rogue Special Mode None Game No. 249 Rogue 195 Adventurer 54 Explorer 0 Win Type - Total 11 Types 7/0/1/1/0/0/0/1/0/1 Lore% 76 Gallery% 64 Achievement% 59 Wizard Run 0 Options --------- Layout 1 ASCII 0 Keyboard 0 Movement Mouse Keybinds 1 Fullscreen 2 Font 32/Tamsyn Map View 50x35 Zoom Use 0% Tactical HUD 1 Map Filters NONE Filters NONE Steam 1 RUN: 02992b6d-54ef-48e8-8e50-5a8901caa5d3